bitfinex/quotes_SOLUSD_20230102
["timestamp","ask_amount","ask_price","bid_price","bid_amount"]
[1672669592475,138.195,11.176,11.163,67.28]
[1672669592831,30.0,11.175,11.163,67.28]
[1672669593008,82.92535019,11.175,11.163,67.28]
[1672669593438,30.0,11.174,11.163,67.28]
[1672669593672,30.0,11.172,11.162,91.5554]
[1672669593959,9.11,11.17,11.162,91.5554]
[1672669594692,30.0,11.172,11.163,67.28]
[1672669596369,30.0,11.172,11.162,24.2654]
[1672669596370,30.0,11.172,11.162,91.5554]
[1672669597081,30.0,11.174,11.162,91.5554]
[1672669597294,54.692,11.174,11.162,91.5554]
[1672669598061,171.4729,11.174,11.162,91.5554]
[1672669598767,17.0,11.173,11.162,91.5554]
[1672669599191,30.0,11.172,11.162,91.5554]
[1672669599396,97.23,11.172,11.162,91.5554]
[1672669599601,30.0,11.174,11.162,91.5554]
[1672669600357,30.0,11.174,11.163,40.71750786]
[1672669600572,30.0,11.174,11.164,67.27]
[1672669601726,17.0,11.173,11.164,67.27]
[1672669602346,30.0,11.175,11.164,83.07730786]
[1672669602566,30.0,11.175,11.165,43.1443]
[1672669602755,30.0,11.175,11.166,67.26]
[1672669602966,30.0,11.175,11.165,67.27]
[1672669603702,17.0,11.174,11.165,67.27]
[1672669604858,30.0,11.177,11.165,67.27]
[1672669605065,30.0,11.178,11.166,43.5489]
[1672669605276,30.0,11.178,11.167,90.8089]
[1672669605490,30.0,11.178,11.168,20.0]
[1672669605711,30.0,11.178,11.169,67.24]
[1672669606242,30.0,11.178,11.17,20.0]
[1672669607284,30.0,11.176,11.169,23.5489]
[1672669607485,30.0,11.176,11.169,67.24]
[1672669607905,30.0,11.176,11.163,67.28]
[1672669608120,136.723,11.175,11.163,67.28]
[1672669608335,30.0,11.174,11.163,155.14153767]
[1672669608534,30.0,11.174,11.163,67.28]
[1672669608744,166.723,11.174,11.163,67.28]
[1672669610430,30.0,11.174,11.163,67.28]
[1672669610636,30.0,11.175,11.164,30.0]
[1672669610856,30.0,11.175,11.165,67.27]
[1672669611055,30.0,11.175,11.163,67.28]
[1672669611809,163.3716,11.175,11.163,67.28]
[1672669613159,163.3716,11.175,11.163,89.7815]
[1672669616016,163.3716,11.175,11.163,177.64303767]
[1672669618522,163.3716,11.175,11.163,89.7815]
[1672669618947,30.0,11.176,11.164,20.0]
[1672669619161,30.0,11.176,11.165,92.098]
[1672669620540,171.0268,11.176,11.165,92.098]
[1672669622426,141.0268,11.176,11.165,92.098]
[1672669622637,141.0268,11.176,11.166,20.0]
[1672669622852,141.0268,11.176,11.167,97.26]
[1672669623167,53.1224,11.182,11.168,20.0]
[1672669623362,30.0,11.18,11.17,30.0]
[1672669623572,30.0,11.18,11.171,110.4025]
[1672669624412,112.5558,11.181,11.171,110.4025]
[1672669624846,30.0,11.18,11.171,110.4025]
[1672669626099,136.0403,11.181,11.171,110.4025]
[1672669627374,30.0,11.18,11.171,110.4025]
[1672669627797,30.0,11.183,11.171,110.4025]
[1672669627990,67.15,11.185,11.173,30.0]
[1672669628196,115.8491,11.193,11.174,67.21]
[1672669628526,30.0,11.192,11.175,50.0]
[1672669628734,193.4447,11.192,11.177,30.0]
[1672669628950,30.0,11.19,11.178,111.5972]
[1672669630100,30.0,11.19,11.178,134.665]
[1672669630308,39.11,11.19,11.178,134.665]
[1672669630521,106.23,11.19,11.178,114.665]
[1672669630734,87.13,11.188,11.176,67.2]
[1672669630950,30.0,11.187,11.171,228.265]
[1672669631143,30.0,11.185,11.172,50.0]
[1672669631358,30.0,11.185,11.173,67.22]
[1672669631889,30.0,11.185,11.173,90.3348]
[1672669632419,148.9612,11.185,11.173,90.3348]
[1672669633695,46.0356,11.186,11.173,90.3348]
[1672669633877,30.0,11.187,11.174,30.0]
[1672669634089,30.0,11.187,11.175,67.21]
[1672669635035,164.9766,11.188,11.175,67.21]
[1672669635236,118.9612,11.188,11.176,50.0]
[1672669635450,118.9612,11.188,11.177,67.2]
[1672669635799,118.9612,11.188,11.178,20.0]
[1672669635982,118.9612,11.188,11.179,67.18]
[1672669636505,118.9612,11.188,11.18,20.0]
[1672669636506,47.0,11.187,11.18,20.0]
[1672669636721,118.9612,11.188,11.181,67.17]
[1672669636936,118.9612,11.188,11.182,20.0]
[1672669637554,118.9612,11.188,11.181,20.0]
[1672669639039,118.9612,11.188,11.18,24.8774]
[1672669639360,30.0,11.187,11.177,67.2]
[1672669639548,97.14,11.187,11.173,24.3045]
[1672669639758,165.8472,11.186,11.174,67.21]
[1672669639990,97.14,11.187,11.174,67.21]
[1672669640301,30.0,11.187,11.174,67.21]
[1672669640499,30.0,11.187,11.175,48.4031]
[1672669640705,30.0,11.187,11.176,67.2]
[1672669640915,30.0,11.187,11.177,24.3045]
[1672669641144,30.0,11.187,11.178,87.19]
[1672669641352,30.0,11.187,11.178,111.4945]
[1672669642491,67.14,11.186,11.175,67.21]
[1672669642707,30.0,11.185,11.175,67.21]
[1672669642911,30.0,11.185,11.174,67.21]
[1672669643126,172.6548,11.185,11.174,67.21]
[1672669643984,67.14,11.186,11.174,67.21]
[1672669644189,30.0,11.187,11.175,30.0]
[1672669644403,30.0,11.187,11.176,67.2]
[1672669644593,30.0,11.187,11.174,67.21]
[1672669645569,30.0,11.185,11.174,67.21]
[1672669646286,30.0,11.189,11.176,30.0]
[1672669646495,30.0,11.189,11.177,135.3654]
[1672669646692,30.0,11.189,11.177,151.17270786]
[1672669647117,30.0,11.189,11.178,23.2999]
[1672669647342,30.0,11.189,11.179,67.18]
[1672669647559,30.0,11.189,11.18,20.0]
[1672669648078,30.0,11.189,11.18,43.2999]
[1672669650488,30.0,11.189,11.181,67.17]
[1672669650703,30.0,11.189,11.182,20.0]
[1672669652054,17.0,11.188,11.182,20.0]
[1672669653438,30.0,11.189,11.182,20.0]
[1672669653961,30.0,11.189,11.183,67.16]
[1672669654368,30.0,11.189,11.182,87.17]
[1672669655965,30.0,11.189,11.182,20.0]
[1672669656898,30.0,11.189,11.181,86.09950013]
[1672669657112,30.0,11.189,11.182,20.0]
[1672669658795,17.0,11.188,11.182,20.0]
[1672669659849,17.0,11.188,11.182,87.17]
[1672669660058,113.6226,11.19,11.182,87.17]
[1672669661836,30.0,11.189,11.182,20.0]
[1672669662902,113.6226,11.19,11.182,20.0]
[1672669663102,113.6226,11.19,11.183,67.16]
[1672669663310,113.6226,11.19,11.182,111.5852]
[1672669664154,113.6226,11.19,11.183,15.80730786]
[1672669664367,113.6226,11.19,11.184,67.15]
[1672669666259,113.6226,11.19,11.183,67.16]
[1672669666470,67.09,11.195,11.184,15.80730786]
[1672669666694,67.08,11.197,11.185,67.15]
[1672669666886,30.0,11.196,11.185,67.15]
[1672669667742,170.161,11.196,11.185,67.15]
[1672669667957,170.161,11.196,11.183,67.16]
[1672669668161,140.161,11.195,11.183,67.16]
[1672669668475,47.0,11.194,11.183,67.16]
[1672669669217,170.6434,11.194,11.184,15.80730786]
[1672669669528,170.6434,11.194,11.185,67.15]
[1672669670146,16.78,11.2,11.186,15.80730786]
[1672669670359,16.78,11.2,11.188,30.0]
[1672669670563,16.78,11.2,11.189,87.12]
[1672669670772,30.0,11.199,11.189,67.12]
[1672669670985,30.0,11.199,11.19,20.0]
[1672669671193,30.0,11.199,11.189,87.12]
[1672669671524,20.0,11.198,11.189,67.12]
[1672669671835,20.0,11.198,11.187,67.14]
[1672669672036,30.0,11.197,11.187,67.14]
[1672669673102,30.0,11.197,11.184,164.16118825]
[1672669673292,133.6689,11.196,11.184,164.16118825]
[1672669673504,30.0,11.195,11.184,164.16118825]
[1672669673732,30.0,11.198,11.185,30.0]
[1672669673942,30.0,11.198,11.186,111.4859]
[1672669675312,30.0,11.198,11.186,67.14]
[1672669675735,166.0242,11.198,11.186,67.14]
[1672669676139,67.08,11.197,11.183,67.16]
[1672669676348,30.0,11.196,11.183,67.16]
[1672669677005,30.0,11.194,11.183,67.16]
[1672669677324,30.0,11.194,11.183,82.96730786]
[1672669677716,165.8482,11.194,11.183,82.96730786]
[1672669678992,165.8482,11.194,11.183,67.16]
[1672669679395,30.0,11.196,11.184,15.80730786]
[1672669679601,30.0,11.196,11.185,67.15]
[1672669680442,161.4868,11.196,11.183,67.16]
[1672669680657,30.0,11.194,11.183,67.16]
[1672669681303,161.4868,11.194,11.183,67.16]
[1672669682768,30.0,11.198,11.184,45.80730786]
[1672669682994,30.0,11.198,11.185,67.15]
[1672669683186,30.0,11.196,11.185,67.15]
[1672669683528,30.0,11.196,11.183,67.16]
[1672669683735,30.0,11.194,11.183,67.16]
[1672669683928,17.0,11.193,11.183,67.16]
[1672669684770,30.0,11.191,11.182,23.3051]
[1672669686125,30.0,11.197,11.183,67.16]
[1672669686340,97.08,11.196,11.183,67.16]
[1672669686551,67.09,11.195,11.182,23.3051]
[1672669686767,9.04,11.19,11.182,23.3051]
[1672669687178,39.04,11.19,11.182,23.3051]
[1672669687387,17.0,11.189,11.182,23.3051]
[1672669687628,30.0,11.188,11.182,23.3051]
[1672669687932,17.0,11.187,11.182,23.3051]
[1672669688760,17.0,11.187,11.175,67.21]
[1672669688966,17.0,11.187,11.176,20.0]
[1672669689302,30.0,11.19,11.177,67.2]
[1672669689515,30.0,11.19,11.178,50.0]
[1672669689716,30.0,11.19,11.179,67.18]
[1672669689921,30.0,11.19,11.18,20.0]
[1672669690127,30.0,11.19,11.181,67.17]
[1672669690556,30.0,11.19,11.182,20.0]
[1672669690883,30.0,11.19,11.183,67.16]
[1672669692135,17.0,11.189,11.183,67.16]
[1672669692766,30.0,11.199,11.184,30.0]
[1672669692981,30.0,11.196,11.185,67.15]
[1672669693203,30.0,11.196,11.184,67.15]
[1672669694221,166.7053,11.196,11.184,67.15]
[1672669695904,166.7053,11.196,11.184,82.95730786]
[1672669696750,67.07,11.198,11.185,30.0]
[1672669696965,30.0,11.199,11.186,87.14]
[1672669697172,30.0,11.199,11.186,150.78120786]
[1672669697481,30.0,11.199,11.187,15.80730786]
[1672669697797,30.0,11.199,11.188,87.13]
[1672669698130,30.0,11.199,11.189,24.2136]
[1672669698340,30.0,11.199,11.19,87.12]
[1672669699267,30.0,11.199,11.19,111.5734]
[1672669700755,30.0,11.199,11.19,91.5734]
[1672669700964,30.0,11.199,11.183,63.06081928]
[1672669700965,30.0,11.199,11.188,67.13]
[1672669701182,110.3637,11.198,11.185,67.15]
[1672669701370,30.0,11.197,11.182,67.17]
[1672669701588,30.0,11.197,11.183,45.80730786]
[1672669701795,30.0,11.197,11.184,67.15]
[1672669702113,30.0,11.197,11.184,82.95730786]
[1672669702657,30.0,11.195,11.184,82.95730786]
[1672669703581,170.938,11.195,11.184,82.95730786]
[1672669704522,30.0,11.197,11.184,82.95730786]
[1672669704741,30.0,11.197,11.185,43.9516]
[1672669704959,30.0,11.197,11.186,67.14]
[1672669705156,30.0,11.197,11.185,67.15]
[1672669705370,30.0,11.197,11.184,67.15]
[1672669706330,30.0,11.195,11.184,67.15]
[1672669706516,30.0,11.195,11.184,82.95730786]
[1672669707165,146.1266,11.195,11.184,82.95730786]
[1672669707990,146.1266,11.195,11.184,67.15]
[1672669711889,67.08,11.197,11.185,30.0]
[1672669712104,16.78,11.2,11.186,87.14]
[1672669712314,16.78,11.2,11.187,30.0]
[1672669712519,16.78,11.2,11.188,87.13]
[1672669712939,16.78,11.2,11.188,102.93730786]
[1672669713148,134.2377,11.2,11.189,15.80730786]
[1672669713371,30.0,11.199,11.19,87.12]
[1672669713558,30.0,11.199,11.19,20.0]
[1672669713794,30.0,11.199,11.189,20.0]
[1672669714507,17.0,11.198,11.189,20.0]
[1672669714720,17.0,11.198,11.187,67.14]
[1672669714928,30.0,11.197,11.184,67.15]
[1672669715143,209.7026,11.197,11.182,107.02889386]
[1672669715484,30.0,11.195,11.183,67.16]
[1672669715883,142.6226,11.195,11.183,67.16]
[1672669716938,30.0,11.195,11.183,67.16]
[1672669717149,30.0,11.195,11.183,158.381586]
[1672669718934,138.501,11.195,11.183,158.381586]
[1672669721044,30.0,11.197,11.183,158.381586]
[1672669721363,30.0,11.197,11.183,174.18889386]
[1672669722409,111.834,11.196,11.183,174.18889386]
[1672669722624,30.0,11.195,11.183,174.18889386]
[1672669722834,141.834,11.195,11.183,174.18889386]
[1672669723153,141.834,11.195,11.183,158.381586]
[1672669723341,141.834,11.195,11.183,174.18889386]
[1672669723552,141.834,11.195,11.183,158.381586]
[1672669724299,30.0,11.197,11.184,30.0]
[1672669724516,30.0,11.197,11.185,87.15]
[1672669727548,30.0,11.199,11.186,45.80730786]
[1672669727751,30.0,11.199,11.187,87.14]
[1672669730832,30.0,11.199,11.187,67.14]
[1672669732205,30.0,11.199,11.188,20.0]
[1672669732514,30.0,11.199,11.189,67.12]
[1672669732732,30.0,11.199,11.19,20.0]
[1672669733357,30.0,11.199,11.189,20.0]
[1672669734516,30.0,11.199,11.19,67.12]
[1672669734713,30.0,11.199,11.191,20.0]
[1672669735567,17.0,11.198,11.19,20.0]
[1672669735766,17.0,11.198,11.187,67.14]
[1672669735979,17.0,11.198,11.183,67.16]
[1672669736195,138.8515,11.197,11.183,67.16]
[1672669736596,138.8515,11.197,11.183,82.96730786]
[1672669736824,30.0,11.195,11.183,67.16]
[1672669737567,143.0773,11.195,11.183,67.16]
[1672669738386,30.0,11.199,11.183,82.96730786]
[1672669738712,30.0,11.199,11.183,67.16]
[1672669739119,30.0,11.197,11.183,67.16]
[1672669739446,30.0,11.195,11.183,67.16]
[1672669740392,143.0773,11.195,11.183,67.16]
[1672669740616,143.0773,11.195,11.181,67.17]
[1672669740823,30.0,11.193,11.181,67.17]
[1672669741224,30.0,11.195,11.181,67.17]
[1672669741538,30.0,11.195,11.182,35.80730786]
[1672669741761,30.0,11.195,11.183,67.16]
[1672669743239,140.1987,11.195,11.183,67.16]
[1672669745144,140.1987,11.195,11.182,67.17]
[1672669745340,30.0,11.193,11.182,67.17]
[1672669745666,30.0,11.193,11.181,67.17]
[1672669745877,30.0,11.191,11.182,20.0]
[1672669746066,30.0,11.191,11.183,67.16]
[1672669746499,30.0,11.191,11.182,20.0]
[1672669748067,97.11,11.191,11.182,20.0]
[1672669748291,30.0,11.191,11.181,20.0]
[1672669748599,111.1278,11.191,11.182,67.17]
[1672669751440,30.0,11.195,11.182,82.97730786]
[1672669751643,30.0,11.195,11.184,30.0]
[1672669751855,30.0,11.195,11.185,67.15]
[1672669752064,30.0,11.195,11.186,20.0]
[1672669752389,30.0,11.195,11.184,67.15]
[1672669752593,148.5286,11.195,11.183,67.16]
[1672669752800,118.5286,11.194,11.183,67.16]
[1672669753011,30.0,11.193,11.183,67.16]
[1672669756893,30.0,11.193,11.181,67.17]
[1672669757102,30.0,11.191,11.182,20.0]
[1672669757314,30.0,11.191,11.183,67.16]
[1672669758151,30.0,11.191,11.183,65.66]
[1672669759212,67.08,11.197,11.185,30.0]
[1672669759431,143.4497,11.199,11.186,87.14]
[1672669760255,143.4497,11.199,11.186,205.5014]
[1672669763003,30.0,11.197,11.186,67.14]
[1672669763216,30.0,11.197,11.184,67.15]
[1672669763407,30.0,11.195,11.184,67.15]
[1672669765200,140.0757,11.195,11.184,67.15]
[1672669766557,97.05,11.202,11.186,30.0]
[1672669766768,163.974,11.2,11.187,67.14]
[1672669766983,231.034,11.2,11.187,67.14]
[1672669767194,231.034,11.2,11.186,67.14]
[1672669767412,163.974,11.2,11.186,182.4297]
[1672669767617,30.0,11.199,11.187,20.0]
[1672669767818,30.0,11.199,11.188,67.13]
[1672669768041,30.0,11.199,11.189,20.0]
[1672669768458,30.0,11.199,11.188,20.0]
[1672669768658,30.0,11.199,11.189,67.12]
[1672669768873,30.0,11.199,11.19,20.0]
[1672669769522,30.0,11.199,11.189,20.0]
[1672669772883,97.06,11.199,11.189,20.0]
[1672669773720,97.06,11.199,11.188,110.6249]
[1672669773938,20.0,11.198,11.185,67.15]
[1672669774167,97.08,11.197,11.181,67.17]
[1672669774457,97.08,11.197,11.181,82.97730786]
[1672669775195,97.08,11.197,11.181,161.68880622]
[1672669775515,30.0,11.195,11.181,161.68880622]
[1672669775720,30.0,11.193,11.181,161.68880622]
[1672669775934,30.0,11.193,11.182,15.80730786]
[1672669776134,30.0,11.193,11.183,67.16]
[1672669776556,30.0,11.193,11.183,82.96730786]
[1672669783718,112.9766,11.194,11.183,82.96730786]
[1672669786132,112.9766,11.194,11.183,67.16]
[1672669786553,30.0,11.193,11.183,67.16]
[1672669787797,30.0,11.193,11.181,67.17]
[1672669788002,111.896,11.192,11.182,20.0]
[1672669788222,30.0,11.191,11.183,67.16]
[1672669789074,25.96,11.2,11.184,45.80730786]
[1672669789386,30.0,11.198,11.185,67.15]
[1672669789605,30.0,11.198,11.183,67.16]
[1672669789800,115.8321,11.197,11.183,67.16]
[1672669790010,30.0,11.196,11.183,67.16]
[1672669790422,30.0,11.194,11.183,67.16]
[1672669790755,30.0,11.194,11.178,15.80730786]
[1672669790756,9.03,11.19,11.17,9.16]
[1672669790970,117.12,11.189,11.171,20.0]
[1672669791285,117.12,11.189,11.172,15.80730786]
[1672669791286,30.0,11.188,11.172,15.80730786]
[1672669791474,145.8321,11.188,11.173,67.22]
[1672669791917,145.8321,11.188,11.173,83.02730786]
[1672669792117,118.267,11.187,11.173,143.6397938]
[1672669792316,30.0,11.186,11.173,210.82272202]
[1672669792530,118.267,11.185,11.173,210.82272202]
[1672669792761,30.0,11.184,11.173,210.82272202]
[1672669792982,148.267,11.184,11.173,210.82272202]
[1672669794125,148.267,11.184,11.173,150.21023608]
[1672669794336,148.267,11.184,11.173,83.02730786]
[1672669797802,148.267,11.184,11.173,67.22]
[1672669798014,148.267,11.184,11.172,15.80730786]
[1672669798326,148.267,11.184,11.173,67.22]
[1672669799503,148.267,11.184,11.171,67.23]
[1672669799705,30.0,11.182,11.172,20.0]
[1672669799912,30.0,11.182,11.173,67.22]
[1672669802754,108.8436,11.183,11.173,67.22]
[1672669803288,108.8436,11.183,11.173,83.02730786]
[1672669805930,9.04,11.19,11.174,30.0]
[1672669806123,114.5905,11.19,11.175,67.21]
[1672669806339,30.0,11.189,11.176,115.7736]
[1672669806664,30.0,11.189,11.177,87.2]
[1672669806976,30.0,11.189,11.177,103.00730786]
[1672669809498,30.0,11.189,11.177,87.2]
[1672669810851,123.6805,11.19,11.177,103.00730786]
[1672669811064,114.5905,11.19,11.177,103.00730786]
[1672669811481,30.0,11.188,11.177,220.75360786]
[1672669814740,30.0,11.188,11.177,200.75360786]
[1672669814946,30.0,11.188,11.177,67.2]
[1672669815185,139.0496,11.188,11.173,15.80730786]
[1672669815508,109.0496,11.187,11.174,67.21]
[1672669815818,30.0,11.186,11.174,83.01730786]
[1672669816038,139.0496,11.186,11.174,83.01730786]
[1672669818758,109.0496,11.186,11.174,83.01730786]
[1672669820126,30.0,11.185,11.174,83.01730786]
[1672669820445,109.0496,11.186,11.175,30.0]
[1672669820750,108.0262,11.185,11.176,83.00730786]
[1672669820971,108.0262,11.185,11.177,20.0]
[1672669821272,108.0262,11.185,11.178,67.19]
[1672669821491,108.0262,11.185,11.179,20.0]
[1672669821801,30.0,11.188,11.18,67.18]
[1672669822021,30.0,11.188,11.181,20.0]
[1672669822419,17.0,11.187,11.181,20.0]
[1672669822656,17.0,11.187,11.178,20.0]
[1672669822851,17.0,11.187,11.179,67.18]
[1672669823061,17.0,11.187,11.18,20.0]
[1672669823588,17.0,11.187,11.179,20.0]
[1672669823803,17.0,11.187,11.18,67.18]
[1672669824012,17.0,11.187,11.181,20.0]
[1672669824527,17.0,11.187,11.179,20.0]
[1672669827992,17.0,11.187,11.18,67.18]
[1672669828217,17.0,11.187,11.181,20.0]
[1672669828847,17.0,11.187,11.179,20.0]
[1672669829041,17.0,11.187,11.18,67.18]
[1672669829252,17.0,11.187,11.181,20.0]
[1672669829884,17.0,11.187,11.179,20.0]
[1672669830113,17.0,11.187,11.18,67.18]
[1672669830321,17.0,11.187,11.181,20.0]
[1672669831163,17.0,11.187,11.179,20.0]
[1672669831351,17.0,11.187,11.18,67.18]
[1672669831568,17.0,11.187,11.181,20.0]
[1672669832087,17.0,11.187,11.179,20.0]
[1672669833668,10.01012474,11.186,11.17,9.01]
[1672669833877,30.0,11.185,11.171,20.0]
[1672669834113,30.0,11.185,11.171,102.99023608]
[1672669834317,30.0,11.185,11.172,83.03730786]
[1672669834530,30.0,11.183,11.173,20.0]
[1672669834733,30.0,11.183,11.174,67.21]
[1672669835143,30.0,11.183,11.174,30.0]
[1672669835351,30.0,11.183,11.175,67.21]
[1672669835776,30.0,11.183,11.173,67.22]
[1672669835986,146.5963,11.183,11.173,67.22]
[1672669836737,146.5963,11.183,11.174,15.80730786]
[1672669836953,146.5963,11.183,11.175,67.21]
[1672669837346,9.97069497,11.182,11.175,67.21]
[1672669843886,39.97069497,11.182,11.175,67.21]
[1672669844077,39.97069497,11.182,11.171,67.23]
[1672669844286,152.43579497,11.182,11.172,35.80730786]
[1672669844515,122.43579497,11.182,11.173,67.22]
[1672669845349,30.0,11.181,11.172,20.0]
[1672669845759,30.0,11.181,11.171,20.0]
[1672669845969,142.4651,11.181,11.171,20.0]
[1672669846499,9.95096951,11.18,11.171,20.0]
[1672669848807,9.95096951,11.18,11.173,30.0]
[1672669849036,9.95096951,11.18,11.174,67.21]
[1672669849568,9.95096951,11.18,11.172,15.80730786]
[1672669849569,9.95096951,11.18,11.173,67.22]
[1672669851563,39.95096951,11.18,11.173,67.22]
[1672669851776,39.95096951,11.18,11.172,67.23]
[1672669851991,39.95096951,11.18,11.173,20.0]
[1672669852309,39.95096951,11.18,11.174,67.21]
[1672669855038,39.95096951,11.18,11.173,20.0]
[1672669855250,39.95096951,11.18,11.172,20.0]
[1672669855673,39.95096951,11.18,11.171,20.0]
[1672669860000,39.95096951,11.18,11.172,67.23]
[1672669860310,39.95096951,11.18,11.173,20.0]
[1672669861048,39.95096951,11.18,11.171,20.0]
[1672669861252,39.95096951,11.18,11.172,67.23]
[1672669861464,39.95096951,11.18,11.173,20.0]
[1672669862205,39.95096951,11.18,11.171,20.0]
[1672669863466,44.92645427,11.18,11.171,20.0]
[1672669865972,20.0,11.179,11.169,109.418]
[1672669866176,30.0,11.177,11.151,174.75308184]
[1672669866391,30.0,11.177,11.159,116.2486]
[1672669866392,30.0,11.175,11.159,116.2486]
[1672669866601,84.21,11.174,11.16,116.2486]
[1672669866816,30.0,11.173,11.161,67.29]
[1672669867142,30.0,11.171,11.161,67.29]
[1672669867463,30.0,11.171,11.162,15.80730786]
[1672669867679,30.0,11.171,11.163,67.28]
[1672669868193,30.0,11.171,11.163,83.08730786]
[1672669868399,116.2838,11.172,11.163,83.08730786]
[1672669868612,30.0,11.171,11.163,83.08730786]
[1672669869965,17.0,11.17,11.163,83.08730786]
[1672669871007,17.0,11.17,11.163,67.28]
[1672669871213,17.0,11.17,11.161,67.29]
[1672669871534,17.0,11.17,11.162,20.0]
[1672669871760,17.0,11.17,11.163,67.28]
[1672669875243,117.9914,11.171,11.163,83.08730786]
[1672669879333,117.9914,11.171,11.163,139.3792383]
[1672669889842,97.18,11.179,11.163,206.55608313]
[1672669890069,167.83,11.179,11.164,23.4243]
[1672669890379,67.2,11.177,11.165,114.6097]
[1672669890603,30.0,11.176,11.165,114.6097]
[1672669890794,30.0,11.176,11.165,67.27]
[1672669891125,30.0,11.176,11.164,67.27]
[1672669891332,30.0,11.174,11.164,67.27]
[1672669891733,30.0,11.174,11.164,83.07730786]
[1672669893228,17.0,11.173,11.164,83.07730786]
[1672669895752,141.962,11.174,11.164,83.07730786]
[1672669896477,30.0,11.173,11.164,83.07730786]
[1672669897001,17.0,11.172,11.164,83.07730786]
[1672669900464,17.0,11.171,11.164,83.07730786]
[1672669900802,52.8898,11.173,11.164,83.07730786]
[1672669900999,17.0,11.172,11.164,83.07730786]
[1672669902574,17.0,11.172,11.164,67.27]
[1672669906244,17.0,11.172,11.164,83.07730786]
[1672669906777,22.8898,11.173,11.164,83.07730786]
[1672669911731,118.2633,11.174,11.164,83.07730786]
[1672669911943,118.2633,11.174,11.165,20.0]
[1672669912142,118.2633,11.174,11.166,97.26]
[1672669912352,118.2633,11.174,11.166,113.06730786]
[1672669912553,11.87010091,11.174,11.167,20.0]
[1672669912884,11.87010091,11.174,11.168,67.25]
[1672669913103,11.87010091,11.174,11.169,20.0]
[1672669913311,11.87010091,11.174,11.17,67.24]
[1672669913508,30.0,11.178,11.171,20.0]
[1672669914049,30.0,11.178,11.169,20.0]
[1672669914455,19.84273616,11.177,11.169,20.0]
[1672669918452,11.9056417,11.177,11.169,20.0]
[1672669919088,11.9056417,11.177,11.168,67.25]
[1672669919301,11.9056417,11.177,11.165,67.27]
[1672669919511,30.0,11.175,11.165,67.27]